Cogmind - Beta 10.2 @@@ ROGUE MODE // 2020.11.10 @ 21:38:08 // Halloween2020/ForbiddenLore Player: Shodan Result: Destroyed by G-34 Mercenary with Small Laser Performance ------------- Evolutions (0) 0 Regions Visited (2) 400 Robots Destroyed (14) 70 Value Destroyed (306) 306 Prototype IDs (1) 20 Alien Tech Used (0) 0 Bonus (0) 0 TOTAL SCORE: 796 Bonus ------- None Cogmind --------- Core Integrity 0/250 Matter 178/300 Energy 193/250 System Corruption 0% Temperature Cool (6) Movement Treading (180) Ox1 Location -10/Mines Parts ------- > --- POWER (1) -------- Ion Engine > --- PROPULSION (2) --- Light Treads > --- UTILITY (2) ------ Small Storage Unit Large Storage Unit > --- WEAPON (2) ------- Makeshift Sword > --- INVENTORY (12) --- Light Deuterium Engine Light Treads Experimental Sensor Array Launcher Guidance Computer Medium Laser Small Laser Peak State ------------ > --- POWER ------------ Ion Engine > --- PROPULSION ------- Compact Wheel Compact Wheel > --- UTILITY ---------- Large Storage Unit Experimental Sensor Array > --- WEAPON ----------- Light Assault Rifle Grenade Launcher > --- INVENTORY -------- Ion Engine Light Treads Light Treads Compact Wheel Small Storage Unit ECM Suite Medium Laser Small Laser Rocket Launcher Makeshift Sword [Rating: 13] Favorites ----------- Power Ion Engine Engine Ion Engine Propulsion Compact Wheel Treads Light Treads Leg Aluminum Leg Wheel Compact Wheel Utility Large Storage Unit Device ECM Suite Storage Large Storage Unit Weapon Light Assault Rifle Energy Gun Medium Laser Ballistic Gun Light Assault Rifle Launcher Grenade Launcher Slashing Weapon Makeshift Sword Build | -11 -10 -10 ------- Run | Scr Mat Min Slots Evolved . | . . . Power . | . . . Propulsion . | . . . Utility . | . . . Weapon . | . . . Parts Attached 15 | 3 4 8 Power 1 | . . 1 Engine 1 | . . 1 Core . | . . . Reactor . | . . . Propulsion 4 | 2 . 2 Treads 1 | . . 1 Leg . | . . . Wheel 3 | 2 . 1 Hover . | . . . Flight . | . . . Utility 6 | 1 2 3 Device 3 | . 1 2 Storage 3 | 1 1 1 Processor . | . . . Hackware . | . . . Protection . | . . . Artifact . | . . . Weapon 4 | . 2 2 Energy Gun 1 | . 1 . Energy Cannon . | . . . Ballistic Gun . | . . . Ballistic Cannon . | . . . Launcher 2 | . 1 1 Special Weapon . | . . . Impact Weapon . | . . . Slashing Weapon 1 | . . 1 Piercing Weapon . | . . . Special Melee Weapon . | . . . Unidentified Prototypes 1 | . . 1 Parts Lost 8 | . . 8 Power 1 | . . 1 Propulsion 3 | . . 3 Utility 1 | . . 1 Weapon 3 | . . 3 Highest Loss Streak 6 | . . 6 Average Slot Usage (%) 91 | . 100 87 Engine 13 | . 14 13 Treads 5 | . . 7 Wheel 21 | . 28 19 Device 6 | . 5 6 Storage 21 | . 22 20 Energy Gun 2 | . 7 . Ballistic Gun 8 | . 14 6 Launcher 6 | . 7 6 Slashing Weapon 4 | . . 6 Naked Turns . | . . . Heaviest Build 27 | 15 26 27 Greatest Support 32 | 32 32 32 Greatest Overweight (x) 1 | . . 1 Average Overweight (x) . | . . . Largest Inventory Capacity 12 | 8 12 12 Average Capacity 10 | 6 8 10 Most Carried 10 | 6 8 10 Average Carried 7 | 5 6 7 Final Capacity 12 | 8 10 12 Final Carried 7 | 5 7 6 Class Distribution -------------------- 100% | Mutant Dominant Class ---------------- Mutant | -10/Materials Mutant | -10/Mines Resources | -11 -10 -10 ----------- Run | Scr Mat Min Matter Collected 335 | 213 39 83 Remotely . | . . . Salvage Created 370 | 81 238 51 Parts 32 | 4 24 4 Haulers Intercepted . | . . . Recyclers Shooed . | . . . Parts Field Recycled . | . . . Retrieved Matter . | . . . Parts Self-Destructed . | . . . Prevented . | . . . Kills | -11 -10 -10 ------- Run | Scr Mat Min Combat Hostiles Destroyed 13 | . 6 7 Melee 1 | . . 1 AOE 12 | . 6 6 Classes Destroyed 8 | 1 4 3 Builder 2 | . 2 . Tunneler 1 | . . 1 Recycler 2 | 1 1 . Watcher 2 | . 2 . Swarmer 2 | . 2 . Grunt 4 | . 4 . Demolisher 1 | . . 1 Assembled 6 | . . 6 Best Kill Streak 11 | 1 11 7 Combat Bots Only 6 | . 6 6 Max Kills in Single Turn 5 | 1 4 5 Gunslinging . | . . . Exploded 5 | . 2 5 Melee 1 | . . 1 Uniques/NPCs Destroyed . | . . . Combat | -11 -10 -10 -------- Run | Scr Mat Min Damage Taken 843 | . 168 675 Core 257 | . 20 237 Absorbed by Shields . | . . . Core Remaining (%) 100 | 100 . . Volleys Fired 17 | 3 10 4 Largest 2 | 2 2 1 Hottest 60 | 60 50 33 Shots Fired 22 | 6 12 4 Gun 8 | 6 2 . Cannon . | . . . Launcher 14 | . 10 4 Special . | . . . Kinetic 5 | 3 2 . Thermal 3 | 3 . . Explosive 14 | . 10 4 Electromagnetic . | . . . Robot Hit Streak 4 | 2 4 . Robot Miss Streak 2 | 1 1 2 Penetration Max . | . . . Secondary Targets . | . . . Shots Hit Robots 17 | 4 6 7 Core Hits 33 | 2 15 16 Critical Hits 1 | . . 1 Critical Kills 1 | . . 1 Critical Parts Destroyed . | . . . Melee Attacks 13 | . . 13 Impact . | . . . Slashing 13 | . . 13 Piercing . | . . . Sneak Attacks . | . . . Combat Hostiles . | . . . Follow-up Attacks . | . . . Damage Inflicted 1127 | 48 541 538 Guns 48 | 48 . . Cannons . | . . . Explosions 829 | . 541 288 Melee 250 | . . 250 Ramming . | . . . Kinetic 24 | 24 . . Thermal 24 | 24 . . Explosive 829 | . 541 288 Electromagnetic . | . . . Impact . | . . . Slashing 250 | . . 250 Piercing . | . . . Highest Corruption . | . . . Average Corruption . | . . . Corruption Purged . | . . . Overload Shots . | . . . Overflow Damage 54 | . 28 26 Projectiles . | . . . Explosions 31 | . 28 3 Melee 23 | . . 23 Knockbacks . | . . . Impact . | . . . Kinetic . | . . . Secondary . | . . . Self-Inflicted Damage 102 | . 76 26 Shots 5 | . 4 1 Rammed . | . . . Targets Rammed . | . . . Kicked . | . . . Crushed . | . . . Highest Temperature 20 | 20 14 . Average Temperature 10 | 15 7 . Received Heat Transfer 174 | . 48 126 Siege Activations . | . . . Robots Corrupted . | . . . Combat Hostiles . | . . . Parts Fried . | . . . Impact Corruptions . | . . . Robots Melted . | . . . Combat Hostiles . | . . . Parts Melted . | . . . Heat Transferred 50 | 50 . . Parts Sabotaged . | . . . Parts Stolen . | . . . Parts Stripped . | . . . Power Chain Reactions . | . . . Missiles Intercepted . | . . . Alert | -11 -10 -10 ------- Run | Scr Mat Min Peak Influence 241 | 5 241 45 Initial 35 | . 3 35 Average 31 | 3 44 27 Maximum Alert Level 1 | . 1 . Low Security (%) 98 | 100 96 100 Level 1 1 | . 3 . Level 2 . | . . . Level 3 . | . . . Level 4 . | . . . Level 5 . | . . . High Security . | . . . Max Security . | . . . Squads Dispatched . | . . . Investigation . | . . . Extermination . | . . . Reinforcement . | . . . Assault . | . . . Garrison . | . . . Intercept . | . . . Construction Impeded . | . . . Haulers Reinforced . | . . . Stealth | -11 -10 -10 --------- Run | Scr Mat Min Distress Signals . | . . . Communications Jammed . | . . . Distress Signals . | . . . Times Spotted 30 | . 9 21 Peak Tracking Total 15 | . 7 15 Tactical Retreats 1 | . . 1 Traps | -11 -10 -10 ------- Run | Scr Mat Min Traps Triggered . | . . . Indirectly . | . . . Trap Hack Attempts . | . . . Triggered . | . . . Disarmed . | . . . Reprogrammed . | . . . Reused . | . . . Traps Extracted . | . . . Installed . | . . . Triggered . | . . . Machines | -11 -10 -10 ---------- Run | Scr Mat Min Machines Disabled 1 | . 1 . Max in Single Turn 1 | . 1 . Machines Sabotaged . | . . . Garrisons Compromised . | . . . Overloaded Fab Kills . | . . . Fab Network Shutdowns . | . . . Hacking | -11 -10 -10 --------- Run | Scr Mat Min Machines Accessed 6 | . 6 . Terminals 4 | . 4 . Fabricators . | . . . Repair Stations . | . . . Recycling Units 2 | . 2 . Scanalyzers . | . . . Garrison Access . | . . . Total Hacks 15 | . 15 . Successful 7 | . 7 . Failed 8 | . 8 . Catastrophic . | . . . Database Lockouts . | . . . Manual 9 | . 9 . Terminals 11 | . 11 . Fabricators . | . . . Repair Stations . | . . . Recycling Units 4 | . 4 . Scanalyzers . | . . . Garrison Access . | . . . Terminal Hacks 4 | . 4 . Robot Analysis 2 | . 2 . Branch Access Points 1 | . 1 . Unreport Threat 1 | . 1 . Fabricator Hacks . | . . . Repair Station Hacks . | . . . Recycling Unit Hacks 3 | . 3 . Report Inventory 2 | . 2 . Retrieve Components 1 | . 1 . Scanalyzer . | . . . Garrison Access Hacks . | . . . Unauthorized Hacks . | . . . Terminals . | . . . Fabricators . | . . . Repair Stations . | . . . Recycling Units . | . . . Scanalyzers . | . . . Garrison Access . | . . . Data Cores Recovered . | . . . Used . | . . . Hacking Detections 5 | . 5 . Full Trace Events . | . . . Feedback Events . | . . . Feedback Blocked . | . . . Robot Schematics Acquired . | . . . Robots Built . | . . . Matter . | . . . Time . | . . . Total Robot Build Rating . | . . . Part Schematics Acquired . | . . . Parts Built . | . . . Matter . | . . . Time . | . . . Total Part Build Rating . | . . . Parts Repaired . | . . . Time . | . . . Parts Recycled . | . . . Recycled Matter . | . . . Retrieved Matter . | . . . Retrieved Components 3 | . 3 . Parts Scanalyzed . | . . . Part Schematics Acquired . | . . . Parts Damaged . | . . . Bothacking | -11 -10 -10 ------------ Run | Scr Mat Min Used RIF Installer . | . . . Robots Hacked . | . . . Non-combat . | . . . Combat . | . . . Robot Hacks Applied . | . . . Relay Couplers Released . | . . . Robots Rewired . | . . . Allies Hacked . | . . . Hacks Repelled . | . . . Allies | -11 -10 -10 -------- Run | Scr Mat Min Total Allies . | . . . Largest Group . | . . . Highest-Rated Group . | . . . Highest-Rated Ally . | . . . Total Orders . | . . . Ally Attacks . | . . . Total Damage . | . . . Kills . | . . . Allies Corrupted . | . . . Allies Melted . | . . . Intel | -11 -10 -10 ------- Run | Scr Mat Min Robot Analysis Total 2 | . 2 . Derelict Logs Recovered 2 | . . 2 Drone Launches . | . . . Drone Recoveries . | . . . Exploration | -11 -10 -10 ------------- Run | Scr Mat Min Turns Passed 644 | 23 185 436 Spaces Moved 469 | 9 156 304 Core . | . . . Treads 98 | . . 98 Legs 6 | 6 . . Wheels 365 | 3 156 206 Hover . | . . . Flight . | . . . Fastest Speed 100 | 100 100 100 Average Speed 117 | 113 100 126 Slowest Speed 180 | 120 100 180 Overloaded Moves . | . . . Propulsion Burnouts . | . . . Robots Hopped . | . . . Cave-ins Triggered . | . . . Exploration Rate (%) 33 | 2 30 67 Regions Visited 2 Branch Regions 1 Pre-discovered Areas 1 | . . 1 Known Exits Taken 1 | . 1 . Unknown Exits Taken 1 | 1 . . Scrap Searched 1 | . . 1 Spaces Dug 9 | . . 9 Terrain Destroyed 97 | . 60 37 Melee . | . . . Projectile . | . . . AOE 97 | . 60 37 Terrain Rammed . | . . . Walls Destroyed . | . . . Machines Disabled . | . . . Actions | -11 -10 -10 --------- Run | Scr Mat Min Total 526 | 16 172 338 Wait 4 | . . 4 Move 467 | 8 155 304 Hop . | . . . Pick Up 6 | . 2 4 Fast Attach 3 | 2 . 1 Attach 8 | 1 1 6 Detach 1 | . . 1 Swap 4 | . 3 1 Drop 3 | 2 1 . Fire 17 | 3 10 4 Melee 13 | . . 13 Ram . | . . . Kick . | . . . Crush . | . . . Escape Stasis . | . . . Rewire . | . . . Trap . | . . . Miscellaneous . | . . . Route ------- -11/Scrapyard -10/Materials (discovered 2 exits: *Min x2) -10/Mines (discovered 1 exit: [*Mat]) History --------- Turn | Location | Event 10 | -11/Scrapyard | Discovered new exit (range 3) 24 | -11/Scrapyard | Entered Materials 52 | -10/Materials | Identified exit to Mines 209 | -10/Materials | Entered Mines 224 | -10/Mines | A weapon hastily lodged in a ceiling crevice suddenly fell to the ground 229 | -10/Mines | Met a Derelict bent on vengeance 247 | -10/Mines | Received a Rocket Launcher from a helpful Derelict 308 | -10/Mines | Build established: Mutant 358 | -10/Mines | Found a damaged Exp. Sensor Array with a note attached 361 | -10/Mines | Found Prototype Device 361 | -10/Mines | Identified Exp. Sensor Array 387 | -10/Mines | Assembled infested the area 388 | -10/Mines | Learned Materials emergency access door positions 411 | -10/Mines | Core integrity fell below 50% 448 | -10/Mines | Lost 6 parts (2n1u3w) 615 | -10/Mines | Core integrity fell below 20% 639 | -10/Mines | Discovered new exit (range 8) 640 | -10/Mines | Learned location of Storage (-7) 645 | -10/Mines | Destroyed by G-34 Mercenary with Small Laser Last Messages --------------- 00443_ D-53 Grenadier destroyed. 00445_ The unstable cave ceiling collapses. 00445_ Acquired 23 matter. 00449_ Acquired Lgt. Deuterium Engine. 00452_ Acquired Launcher Guidance Computer. 00462_ The unstable cave ceiling collapses. 00485_ Acquired 1 matter. 00487_ Acquired 2 matter. 00498_ U-05 Engineer lays Concrete. 00502_ U-05 Engineer builds a Wall. 00507_ U-05 Engineer lays Concrete. 00509_ U-05 Engineer builds a Wall. 00555_ Acquired 5 matter. 00610_ Com. Wheel destroyed. 00612_ Ion Engine destroyed. 00616_ Destroyed Particle Gun. 00626_ Destroyed Sml. Laser. 00639_ EXIT=FOUND 00640_ Acquired derelict log, extracted data. World map updated: -7/Storage. Map ----- +----------------------------------------------------+ | ?????????????????????????????????????????????????? | | ?????????????????????????????????????????????????? | | ?????????????????????????????????????????????????? | | ?????????????????????????????????????????????????? | | ?????????????????????????????????????????????????? | | ?????????????????????????????????????????????????? | | ?????????????????????????????????????????????????? | | ?????????????????????????????????????????????????? | | ?????????????????????????????????????????????????? | | ?????????????????????????????????????????????????? | | ?????????????????????????????????????????????????? | | ?????????????????????????????????????????????????? | | ?????????????????????????????????????????????????? | | ?????????????????????????????????????????????????? | | ?????????????????????????????????????????????????? | | ?????????????????????????????????????????????????? | | ???????????????????????#######???????????????????? | | ???????????????????????# #???????????????????? | | ??????????????????????## #???????????????????? | | ??????????????????????? < #???????????????????? | | ???????????????????????#r #???????????????????? | | ???????????????????????# #???????????????????? | | ???????? ??????????????# #???????????????????? | | ???????? ??????????????# g g ????????????????????? | | ???????# ???????????????#$ #???????#?????????????? | | ??????# ???????????????#@ ####### ## #????? | | ?????? ???????????????# #????? | | ?????? ???????????????####### #### #?????? | | ?????? ??????????######?????# #????????????????? | | ?????? ?????????## ##????# #????????????????? | | ?????? ?????????# ###### #????????????????? | | ??????# ????????## #????????????????? | | ??????# #???????## #########????????????????? | | ??????# #???????# ##????????????????????????? | | ####??# #???????# #?????????????????????????# | | ##?# #???????# ######?####??????????????## | | ### ######### ### ##############?# | | ## #?# | | #??# | | #### #### ## """ """ #??# | | ##??# #??## #### # ### """ """ #??# | | ##??## ##??##########??## ## #?# """ """ #??# | | #??## ##??????????????# #### #?#########?????# | | ##?## ##?????????????# #??# #???????????????# | | #?## ##????????????# #??# #?#?############# | | ??# ##???????????# #### ##### | | ??# ######??????# =## # ##### | | ??## ## ##?????###### !## # #??# | | ???#### #??????????# ### #??## | | ??????#### #??????????# ### # #?## | +----------------------------------------------------+ Best States ------------- Heat Dissipation 25 Energy Generation 10 Energy Capacity 250 Matter Stores 300 Matter Capacity 300 Sight Range 16 Terrain Scan Density 10 ECM Strength 1 Evasion (%) 40 Recoil Reduction 1 Item Schematics ----------------- None Robot Schematics ------------------ None Fabricated ------------ Nothing Alien Tech Used ----------------- None Achievements -------------- None Challenges ------------ None Game ------ Seed RocketMediumSheargun Manual? 0 Play Time 00:10:31 Cumulative 106.3 hours Start 2020.11.10 @ 21:31:06 End 2020.11.10 @ 21:38:08 Sessions 1 Manual Loads 0 Difficulty Rogue Special Mode Halloween2020/ForbiddenLore Game No. 116 Rogue 116 Adventurer 0 Explorer 0 Win Type - Total 1 Types 1/0/0/0/0/0/0/0/0 Lore% 60 Gallery% 65 Achievement% 50 Wizard Run 0 Options --------- ASCII 0 Keyboard 0 Movement Numpad Keybinds 0 Fullscreen 1 Font 24/Smallcaps Map View 76x50 Tactical HUD 1 Map Filters NONE Filters NONE Steam 1 RUN: 4b9b6ce9-21b2-4856-bcc3-addbcfa4d28d